[Event "7° Rencontres Internationales des Echecs Francophones"]
[Site "PARIS, France"]
[Date "2019.08.04"]
[Round "1.2"]
[White "David, A."]
[Black "Randrianarimanana, A."]
[Result "1-0"]
[TimeControl "90'+ 30' + 30seconds/move"]
[WhiteElo "2534"]
[BlackElo "1794"]

1. e4 {[%clk 01:30:57]} {[%emt 00:00:02]} c5 {[%clk 01:30:56]} {[%emt
00:00:04]} 2. Nf3 {[%clk 01:31:22]} {[%emt 00:00:05]} Nf6 {[%clk 01:30:51]}
{[%emt 00:00:35]} 3. d3 {[%clk 01:30:35]} {[%emt 00:01:17]} e6 {[%clk
01:27:37]} {[%emt 00:03:45]} 4. g3 {[%clk 01:30:50]} {[%emt 00:00:15]} d5
{[%clk 01:27:03]} {[%emt 00:01:04]} 5. Qe2 {[%clk 01:30:01]} {[%emt 00:01:18]}
Be7 {[%clk 01:21:45]} {[%emt 00:05:49]} 6. Bg2 {[%clk 01:30:15]} {[%emt
00:00:15]} Nc6 {[%clk 01:18:49]} {[%emt 00:03:26]} 7. O-O {[%clk 01:30:20]}
{[%emt 00:00:25]} O-O {[%clk 01:17:36]} {[%emt 00:01:44]} 8. e5 {[%clk
01:30:38]} {[%emt 00:00:11]} Nd7 {[%clk 01:17:35]} {[%emt 00:00:31]} 9. c4
{[%clk 01:30:53]} {[%emt 00:00:15]} Rb8 {[%clk 00:39:00]} {[%emt 00:39:06]} 10.
h4 {[%clk 01:01:45]} {[%emt 00:29:37]} d4 {[%clk 00:14:00]} {[%emt 00:25:30]}
11. Bf4 {[%clk 01:01:10]} {[%emt 00:01:05]} Qc7 {[%clk 00:13:33]} {[%emt
00:00:57]} 12. Nbd2 {[%clk 00:59:50]} {[%emt 00:01:49]} b5 {[%clk 00:11:43]}
{[%emt 00:02:21]} 13. cxb5 {[%clk 00:49:33]} {[%emt 00:10:47]} Rxb5 {[%clk
00:11:30]} {[%emt 00:00:43]} 14. Nc4 {[%clk 00:49:58]} {[%emt 00:00:05]} Ba6
{[%clk 00:10:34]} {[%emt 00:01:26]} 15. Rac1 {[%clk 00:46:26]} {[%emt
00:04:01]} Rfb8 {[%clk 00:10:34]} {[%emt 00:00:30]} 16. b3 {[%clk 00:46:36]}
{[%emt 00:00:20]} Nb4 {[%clk 00:10:06]} {[%emt 00:00:59]} 17. Ng5 {[%clk
00:44:23]} {[%emt 00:02:42]} h6 {[%clk 00:07:58]} {[%emt 00:02:38]} 18. Ne4
{[%clk 00:38:57]} {[%emt 00:05:56]} Nd5 {[%clk 00:06:28]} {[%emt 00:02:00]} 19.
Ned6 {[%clk 00:39:21]} {[%emt 00:00:05]} Nxf4 {[%clk 00:06:29]} {[%emt
00:00:29]} 20. gxf4 {[%clk 00:39:47]} {[%emt 00:00:05]} Rb4 {[%clk 00:06:22]}
{[%emt 00:00:38]} 21. Kh1 {[%clk 00:37:43]} {[%emt 00:02:33]} Bxc4 {[%clk
00:05:49]} {[%emt 00:01:03]} 22. Nxc4 {[%clk 00:38:08]} {[%emt 00:00:05]} Bxh4
{[%clk 00:05:43]} {[%emt 00:00:36]} 23. Qh5 {[%clk 00:35:19]} {[%emt 00:03:18]}
Be7 {[%clk 00:06:09]} {[%emt 00:00:05]} 24. Rg1 {[%clk 00:35:40]} {[%emt
00:00:08]} f5 {[%clk 00:04:18]} {[%emt 00:02:22]} 25. Bf3 {[%clk 00:34:50]}
{[%emt 00:01:19]} Kh8 {[%clk 00:03:10]} {[%emt 00:01:39]} 26. Rxg7 {[%clk
00:29:29]} {[%emt 00:05:51]} Kxg7 {[%clk 00:03:25]} {[%emt 00:00:15]} 27. Rg1+
{[%clk 00:29:54]} {[%emt 00:00:05]} Kf8 {[%clk 00:03:01]} {[%emt 00:00:54]} 28.
Qg6 {[%clk 00:29:27]} {[%emt 00:00:56]} Bg5 {[%clk 00:02:08]} {[%emt 00:01:24]}
29. fxg5 {[%clk 00:29:03]} {[%emt 00:00:54]} Rxc4 {[%clk 00:00:37]} {[%emt
00:02:02]} 30. gxh6 {[%clk 00:17:07]} {[%emt 00:12:25]} 1-0

[Event "7° Rencontres Internationales des Echecs Francophones"]
[Site "PARIS, France"]
[Date "2019.08.05"]
[Round "2.3"]
[White "Shchekachev, Andrei"]
[Black "Le Pen, Steven"]
[Result "1-0"]
[TimeControl "90'+ 30' + 30seconds/move"]
[WhiteTitle "GM"]
[WhiteFideId "4107730"]
[BlackFideId "612197"]
[WhiteElo "2530"]
[BlackElo "2092"]

1. Nf3 {[%clk 01:23:46]} {[%emt 00:07:12]} c5 {[%clk 01:30:53]} {[%emt
00:00:08]} 2. c4 {[%clk 01:22:39]} {[%emt 00:01:36]} Nc6 {[%clk 01:31:13]}
{[%emt 00:00:11]} 3. d4 {[%clk 01:22:38]} {[%emt 00:00:31]} cxd4 {[%clk
01:31:35]} {[%emt 00:00:07]} 4. Nxd4 {[%clk 01:22:59]} {[%emt 00:00:09]} Nf6
{[%clk 01:31:56]} {[%emt 00:00:10]} 5. Nc3 {[%clk 01:22:59]} {[%emt 00:00:30]}
e6 {[%clk 01:32:14]} {[%emt 00:00:12]} 6. g3 {[%clk 01:23:01]} {[%emt
00:00:27]} Qb6 {[%clk 01:32:33]} {[%emt 00:00:11]} 7. Ndb5 {[%clk 01:22:57]}
{[%emt 00:00:33]} Ne5 {[%clk 01:32:50]} {[%emt 00:00:14]} 8. Bg2 {[%clk
01:23:14]} {[%emt 00:00:12]} a6 {[%clk 01:32:50]} {[%emt 00:00:31]} 9. Qa4
{[%clk 01:22:42]} {[%emt 00:01:01]} Rb8 {[%clk 01:32:42]} {[%emt 00:00:39]} 10.
Na3 {[%clk 01:22:58]} {[%emt 00:00:14]} Be7 {[%clk 01:33:00]} {[%emt 00:00:12]}
11. O-O {[%clk 01:18:15]} {[%emt 00:05:13]} O-O {[%clk 01:33:21]} {[%emt
00:00:10]} 12. Bf4 {[%clk 01:12:10]} {[%emt 00:06:34]} d6 {[%clk 01:32:20]}
{[%emt 00:01:32]} 13. Qb3 {[%clk 01:09:45]} {[%emt 00:02:53]} Qc7 {[%clk
01:27:53]} {[%emt 00:04:58]} 14. c5 {[%clk 01:08:21]} {[%emt 00:01:54]} Qxc5
{[%clk 01:23:14]} {[%emt 00:05:09]} 15. Be3 {[%clk 01:01:45]} {[%emt 00:07:06]}
Qc7 {[%clk 01:22:25]} {[%emt 00:01:20]} 16. Bb6 {[%clk 00:59:15]} {[%emt
00:03:00]} Qd7 {[%clk 01:21:50]} {[%emt 00:01:05]} 17. Rfd1 {[%clk 00:58:58]}
{[%emt 00:00:47]} Bd8 {[%clk 01:14:06]} {[%emt 00:08:14]} 18. Ba7 {[%clk
00:44:35]} {[%emt 00:14:53]} Ra8 {[%clk 01:09:51]} {[%emt 00:04:45]} 19. Bd4
{[%clk 00:44:54]} {[%emt 00:00:11]} Nc6 {[%clk 00:51:59]} {[%emt 00:18:22]} 20.
Bxf6 {[%clk 00:42:47]} {[%emt 00:02:37]} Bxf6 {[%clk 00:37:11]} {[%emt
00:15:18]} 21. Bxc6 {[%clk 00:15:16]} {[%emt 00:28:01]} Qxc6 {[%clk 00:24:20]}
{[%emt 00:13:22]} 22. Rac1 {[%clk 00:15:38]} {[%emt 00:00:07]} Bd7 {[%clk
00:21:57]} {[%emt 00:02:54]} 23. Nd5 {[%clk 00:11:08]} {[%emt 00:04:59]} Qa4
{[%clk 00:21:47]} {[%emt 00:00:41]} 24. Nxf6+ {[%clk 00:11:13]} {[%emt
00:00:24]} gxf6 {[%clk 00:22:12]} {[%emt 00:00:05]} 25. Qf3 {[%clk 00:06:53]}
{[%emt 00:04:50]} Bc6 {[%clk 00:20:43]} {[%emt 00:01:59]} 26. Qe3 {[%clk
00:03:18]} {[%emt 00:04:04]} Qe4 {[%clk 00:20:01]} {[%emt 00:01:13]} 27. Qxe4
{[%clk 00:03:23]} {[%emt 00:00:25]} Bxe4 {[%clk 00:20:29]} {[%emt 00:00:02]} 28.
Nc4 {[%clk 00:03:08]} {[%emt 00:00:45]} Rac8 {[%clk 00:18:15]} {[%emt
00:02:43]} 29. Nxd6 {[%clk 00:03:07]} {[%emt 00:00:31]} Rxc1 {[%clk 00:18:37]}
{[%emt 00:00:08]} 30. Rxc1 {[%clk 00:03:33]} {[%emt 00:00:04]} Bc6 {[%clk
00:17:17]} {[%emt 00:01:50]} 31. Kf1 {[%clk 00:02:13]} {[%emt 00:01:50]} Rd8
{[%clk 00:17:13]} {[%emt 00:00:35]} 32. Nc4 {[%clk 00:02:31]} {[%emt 00:00:11]}
Bd5 {[%clk 00:16:25]} {[%emt 00:01:18]} 33. Rd1 {[%clk 00:00:41]} {[%emt
00:02:20]} Bg2+ {[%clk 00:16:48]} {[%emt 00:00:07]} 34. Ke1 {[%clk 00:01:09]}
{[%emt 00:00:02]} Rxd1+ {[%clk 00:08:02]} {[%emt 00:09:15]} 35. Kxd1 {[%clk
00:01:38]} {[%emt 00:00:02]} Bd5 {[%clk 00:08:20]} {[%emt 00:00:12]} 36. Nd2
{[%clk 00:02:03]} {[%emt 00:00:04]} f5 {[%clk 00:08:00]} {[%emt 00:00:50]} 37.
Kc2 {[%clk 00:01:51]} {[%emt 00:00:42]} Kf8 {[%clk 00:07:06]} {[%emt 00:01:24]}
38. Kc3 {[%clk 00:01:51]} {[%emt 00:00:30]} Ke7 {[%clk 00:07:08]} {[%emt
00:00:28]} 39. a4 {[%clk 00:00:47]} {[%emt 00:01:35]} Kd6 {[%clk 00:03:48]}
{[%emt 00:03:50]} 40. Kb4 {[%clk 00:00:40]} {[%emt 00:00:36]} b6 {[%clk
00:03:06]} {[%emt 00:01:12]} 41. a5 {[%clk 00:26:26]} {[%emt 00:05:14]} Kc6
{[%clk 00:21:38]} {[%emt 00:12:28]} 42. f3 {[%clk 00:19:54]} {[%emt 00:07:02]}
e5 {[%clk 00:18:23]} {[%emt 00:03:45]} 43. f4 {[%clk 00:16:07]} {[%emt
00:04:18]} f6 {[%clk 00:16:07]} {[%emt 00:02:46]} 44. e3 {[%clk 00:11:49]}
{[%emt 00:04:47]} b5 {[%clk 00:11:36]} {[%emt 00:05:02]} 45. Kc3 {[%clk
00:09:51]} {[%emt 00:02:28]} Kc5 {[%clk 00:09:01]} {[%emt 00:03:07]} 46. b4+
{[%clk 00:10:06]} {[%emt 00:00:15]} Kd6 {[%clk 00:08:23]} {[%emt 00:01:07]} 47.
Kd3 {[%clk 00:10:28]} {[%emt 00:00:08]} Ke6 {[%clk 00:05:13]} {[%emt 00:03:41]}
48. fxe5 {[%clk 00:07:42]} {[%emt 00:03:16]} fxe5 {[%clk 00:04:38]} {[%emt
00:01:04]} 49. e4 {[%clk 00:07:08]} {[%emt 00:01:03]} Ba2 {[%clk 00:03:53]}
{[%emt 00:01:16]} 50. Ke3 {[%clk 00:06:09]} {[%emt 00:01:28]} h5 {[%clk
00:02:20]} {[%emt 00:02:03]} 51. h3 {[%clk 00:05:21]} {[%emt 00:01:17]} Kf6
{[%clk 00:02:13]} {[%emt 00:00:38]} 52. exf5 {[%clk 00:05:43]} {[%emt
00:00:08]} Kxf5 {[%clk 00:02:33]} {[%emt 00:00:10]} 53. Ne4 {[%clk 00:06:03]}
{[%emt 00:00:09]} Be6 {[%clk 00:02:05]} {[%emt 00:00:58]} 54. Nc5 {[%clk
00:05:26]} {[%emt 00:01:07]} Bc8 {[%clk 00:02:02]} {[%emt 00:00:34]} 55. g4+
{[%clk 00:05:10]} {[%emt 00:00:45]} hxg4 {[%clk 00:02:15]} {[%emt 00:00:17]} 56.
hxg4+ {[%clk 00:05:33]} {[%emt 00:00:07]} Kf6 {[%clk 00:02:21]} {[%emt
00:00:24]} 57. Kf3 {[%clk 00:05:21]} {[%emt 00:00:42]} Kg5 {[%clk 00:00:42]}
{[%emt 00:02:10]} 58. Ke4 {[%clk 00:05:42]} {[%emt 00:00:08]} Kxg4 {[%clk
00:00:31]} {[%emt 00:00:41]} 59. Kxe5 {[%clk 00:06:02]} {[%emt 00:00:09]} Kf3
{[%clk 00:00:42]} {[%emt 00:00:20]} 60. Kd6 {[%clk 00:05:26]} {[%emt 00:01:06]}
Ke3 {[%clk 00:01:10]} {[%emt 00:00:02]} 61. Kc7 {[%clk 00:05:46]} {[%emt
00:00:09]} Bh3 {[%clk 00:01:01]} {[%emt 00:00:39]} 62. Nxa6 {[%clk 00:06:03]}
{[%emt 00:00:14]} Kd4 {[%clk 00:01:14]} {[%emt 00:00:17]} 63. Nb8 {[%clk
00:06:06]} {[%emt 00:00:27]} Ke5 {[%emt 00:00:38]} 1-0

[Event "7° Rencontres Internationales des Echecs Francophones"]
[Site "PARIS, France"]
[Date "2019.08.05"]
[Round "2.4"]
[White "Toulzac, Pierre-Yves"]
[Black "Mastrovasilis, Athanasios"]
[Result "1/2-1/2"]
[TimeControl "90'+ 30' + 30seconds/move"]
[WhiteTitle "FM"]
[BlackTitle "GM"]
[WhiteFideId "604720"]
[BlackFideId "4201990"]
[WhiteElo "2096"]
[BlackElo "2518"]

1. d4 {[%clk 01:30:56]} {[%emt 00:00:02]} Nf6 {[%clk 01:30:35]} {[%emt
00:00:26]} 2. c4 {[%clk 01:31:04]} {[%emt 00:00:23]} e6 {[%clk 01:30:49]}
{[%emt 00:00:15]} 3. Nf3 {[%clk 01:31:14]} {[%emt 00:00:20]} d5 {[%clk
01:30:39]} {[%emt 00:00:40]} 4. Nc3 {[%clk 01:30:50]} {[%emt 00:00:54]} Nbd7
{[%clk 01:30:06]} {[%emt 00:01:03]} 5. cxd5 {[%clk 01:29:41]} {[%emt 00:01:39]}
exd5 {[%clk 01:30:25]} {[%emt 00:00:11]} 6. Bg5 {[%clk 01:29:59]} {[%emt
00:00:11]} c6 {[%clk 01:29:18]} {[%emt 00:01:39]} 7. e3 {[%clk 01:29:40]}
{[%emt 00:00:48]} h6 {[%clk 01:26:48]} {[%emt 00:03:00]} 8. Bh4 {[%clk
01:29:21]} {[%emt 00:00:49]} Be7 {[%clk 01:27:11]} {[%emt 00:00:06]} 9. Qc2
{[%clk 01:29:07]} {[%emt 00:00:45]} Nh5 {[%clk 01:27:10]} {[%emt 00:00:31]} 10.
Bxe7 {[%clk 01:25:52]} {[%emt 00:03:45]} Qxe7 {[%clk 01:27:33]} {[%emt
00:00:07]} 11. O-O-O {[%clk 01:24:57]} {[%emt 00:01:24]} Nhf6 {[%clk 01:27:15]}
{[%emt 00:00:48]} 12. Kb1 {[%clk 01:18:51]} {[%emt 00:06:37]} Nb6 {[%clk
01:25:39]} {[%emt 00:02:06]} 13. Ne5 {[%clk 01:14:45]} {[%emt 00:04:36]} Ng4
{[%clk 01:24:44]} {[%emt 00:01:24]} 14. Nxg4 {[%clk 01:14:39]} {[%emt
00:00:37]} Bxg4 {[%clk 01:24:49]} {[%emt 00:00:26]} 15. f3 {[%clk 01:14:57]}
{[%emt 00:00:12]} Be6 {[%clk 01:20:01]} {[%emt 00:05:18]} 16. Na4 {[%clk
01:03:17]} {[%emt 00:12:10]} Nxa4 {[%clk 01:10:17]} {[%emt 00:10:13]} 17. Qxa4
{[%clk 01:03:35]} {[%emt 00:00:13]} Bf5+ {[%clk 01:05:25]} {[%emt 00:05:21]} 18.
Bd3 {[%clk 00:58:49]} {[%emt 00:05:17]} Bxd3+ {[%clk 01:02:06]} {[%emt
00:03:49]} 19. Rxd3 {[%clk 00:59:10]} {[%emt 00:00:09]} O-O {[%clk 01:02:26]}
{[%emt 00:00:10]} 20. Qc2 {[%clk 00:52:21]} {[%emt 00:07:20]} Rae8 {[%clk
00:55:27]} {[%emt 00:07:29]} 21. Ra3 {[%clk 00:44:17]} {[%emt 00:08:34]} a6
{[%clk 00:53:45]} {[%emt 00:02:12]} 22. Rb3 {[%clk 00:40:37]} {[%emt 00:04:10]}
f5 {[%clk 00:52:31]} {[%emt 00:01:45]} 23. g3 {[%clk 00:39:57]} {[%emt
00:01:10]} Rf6 {[%clk 00:51:10]} {[%emt 00:01:50]} 24. Re1 {[%clk 00:38:59]}
{[%emt 00:01:27]} Qf7 {[%clk 00:45:30]} {[%emt 00:06:10]} 25. Rd1 {[%clk
00:33:57]} {[%emt 00:05:33]} Rfe6 {[%clk 00:43:37]} {[%emt 00:02:23]} 26. Rdd3
{[%clk 00:32:49]} {[%emt 00:01:38]} R8e7 {[%clk 00:43:08]} {[%emt 00:00:58]} 27.
a3 {[%clk 00:32:33]} {[%emt 00:00:47]} Qh5 {[%clk 00:42:00]} {[%emt 00:01:37]}
28. Qg2 {[%clk 00:30:59]} {[%emt 00:02:03]} g5 {[%clk 00:32:47]} {[%emt
00:09:44]} 29. Ka2 {[%clk 00:27:57]} {[%emt 00:03:34]} Kh7 {[%clk 00:25:38]}
{[%emt 00:07:38]} 30. Rb6 {[%clk 00:25:58]} {[%emt 00:02:29]} Qf7 {[%clk
00:19:27]} {[%emt 00:06:40]} 31. Qd2 {[%clk 00:20:21]} {[%emt 00:06:08]} c5
{[%clk 00:19:26]} {[%emt 00:00:31]} 32. Rxe6 {[%clk 00:03:41]} {[%emt
00:17:10]} Qxe6 {[%clk 00:19:41]} {[%emt 00:00:15]} 33. Qa5 {[%clk 00:03:33]}
{[%emt 00:00:38]} c4 {[%clk 00:19:13]} {[%emt 00:00:57]} 34. Rc3 {[%clk
00:03:55]} {[%emt 00:00:09]} Qd6 {[%clk 00:15:00]} {[%emt 00:04:41]} 35. f4
{[%clk 00:02:18]} {[%emt 00:02:08]} b5 {[%clk 00:14:12]} {[%emt 00:01:19]} 36.
Qb4 {[%clk 00:02:04]} {[%emt 00:00:44]} Qxb4 {[%clk 00:13:17]} {[%emt
00:01:25]} 37. axb4 {[%clk 00:02:32]} {[%emt 00:00:02]} Kg6 {[%clk 00:07:50]}
{[%emt 00:05:57]} 38. Ra3 {[%clk 00:02:47]} {[%emt 00:00:15]} Re6 {[%clk
00:07:59]} {[%emt 00:00:21]} 39. Kb1 {[%clk 00:02:53]} {[%emt 00:00:24]} Kf7
{[%clk 00:05:14]} {[%emt 00:03:15]} 40. Kc1 {[%clk 00:02:25]} {[%emt 00:00:58]}
Ke7 {[%clk 00:03:24]} {[%emt 00:02:20]} 41. Kd2 {[%clk 00:00:38]} {[%emt
00:02:17]} Kd7 {[%clk 00:03:37]} {[%emt 00:00:17]} 42. Ra1 {[%clk 00:30:05]}
{[%emt 00:01:33]} gxf4 {[%clk 00:26:06]} {[%emt 00:08:32]} 43. exf4 {[%clk
00:22:47]} {[%emt 00:07:47]} Re4 {[%clk 00:25:28]} {[%emt 00:01:08]} 44. Rxa6
{[%clk 00:22:05]} {[%emt 00:01:13]} Rxd4+ {[%clk 00:25:52]} {[%emt 00:00:05]}
45. Kc1 {[%clk 00:21:11]} {[%emt 00:01:24]} Re4 {[%clk 00:20:02]} {[%emt
00:06:20]} 46. Rf6 {[%clk 00:17:07]} {[%emt 00:04:34]} Re2 {[%clk 00:06:00]}
{[%emt 00:14:31]} 47. Rxf5 {[%clk 00:15:35]} {[%emt 00:02:03]} Ke6 {[%clk
00:06:24]} {[%emt 00:00:06]} 48. Rh5 {[%clk 00:15:08]} {[%emt 00:00:57]} d4
{[%clk 00:06:43]} {[%emt 00:00:11]} 49. Rxb5 {[%clk 00:12:45]} {[%emt
00:02:55]} Rxh2 {[%clk 00:07:01]} {[%emt 00:00:11]} 50. Rc5 {[%clk 00:12:49]}
{[%emt 00:00:25]} Rh1+ {[%clk 00:07:14]} {[%emt 00:00:17]} 51. Kd2 {[%clk
00:12:10]} {[%emt 00:01:09]} Rh2+ {[%clk 00:07:34]} {[%emt 00:00:10]} 52. Kc1
{[%clk 00:12:29]} {[%emt 00:00:12]} Rh1+ {[%clk 00:07:24]} {[%emt 00:00:39]} 53.
Kd2 {[%clk 00:12:52]} {[%emt 00:00:06]} Rh2+ {[%clk 00:07:46]} {[%emt
00:00:09]} 54. Kc1 {[%clk 00:13:17]} {[%emt 00:00:06]} Ke5 {[%emt 00:00:16]}
1/2-1/2

[Event "7° Rencontres Internationales des Echecs Francophones"]
[Site "PARIS, France"]
[Date "2019.08.08"]
[Round "5.10"]
[White "Ek, Alexandre"]
[Black "Prie, Eric"]
[Result "1/2-1/2"]
[TimeControl "90'+ 30' + 30seconds/move"]
[BlackTitle "GM"]
[WhiteFideId "632570"]
[BlackFideId "600172"]
[WhiteElo "2188"]
[BlackElo "2439"]

1. e4 {[%clk 01:30:57]} {[%emt 00:00:01]} d5 {[%clk 01:22:25]} {[%emt
00:08:36]} 2. exd5 {[%clk 01:31:19]} {[%emt 00:00:08]} Qxd5 {[%clk 01:22:47]}
{[%emt 00:00:09]} 3. Nc3 {[%clk 01:31:33]} {[%emt 00:00:16]} Qa5 {[%clk
01:23:08]} {[%emt 00:00:09]} 4. d4 {[%clk 01:31:56]} {[%emt 00:00:06]} Nf6
{[%clk 01:23:28]} {[%emt 00:00:09]} 5. Nf3 {[%clk 01:32:02]} {[%emt 00:00:24]}
Bf5 {[%clk 01:23:52]} {[%emt 00:00:06]} 6. Ne5 {[%clk 01:31:47]} {[%emt
00:00:46]} c6 {[%clk 01:23:01]} {[%emt 00:01:21]} 7. Bc4 {[%clk 01:32:00]}
{[%emt 00:00:17]} e6 {[%clk 01:23:22]} {[%emt 00:00:09]} 8. g4 {[%clk
01:32:02]} {[%emt 00:00:27]} Bg6 {[%clk 01:23:43]} {[%emt 00:00:10]} 9. h4
{[%clk 01:32:21]} {[%emt 00:00:11]} Nbd7 {[%clk 01:24:05]} {[%emt 00:00:08]} 10.
Nxd7 {[%clk 01:32:41]} {[%emt 00:00:10]} Nxd7 {[%clk 01:24:26]} {[%emt
00:00:09]} 11. h5 {[%clk 01:32:48]} {[%emt 00:00:23]} Be4 {[%clk 01:24:47]}
{[%emt 00:00:09]} 12. O-O {[%clk 01:33:03]} {[%emt 00:00:15]} Bd5 {[%clk
01:25:10]} {[%emt 00:00:07]} 13. Nxd5 {[%clk 01:33:25]} {[%emt 00:00:08]} cxd5
{[%clk 01:25:32]} {[%emt 00:00:07]} 14. Bd3 {[%clk 01:33:49]} {[%emt 00:00:06]}
g6 {[%clk 01:25:57]} {[%emt 00:00:06]} 15. h6 {[%clk 01:33:54]} {[%emt
00:00:25]} Bd6 {[%clk 01:25:38]} {[%emt 00:00:48]} 16. a4 {[%clk 01:34:10]}
{[%emt 00:00:15]} O-O-O {[%clk 01:22:56]} {[%emt 00:03:12]} 17. Bd2 {[%clk
01:31:35]} {[%emt 00:03:04]} Qc7 {[%clk 01:23:20]} {[%emt 00:00:07]} 18. a5
{[%clk 01:31:36]} {[%emt 00:00:29]} Kb8 {[%clk 01:22:18]} {[%emt 00:01:32]} 19.
a6 {[%clk 01:30:16]} {[%emt 00:01:50]} b6 {[%clk 01:22:42]} {[%emt 00:00:06]}
20. Rc1 {[%clk 01:15:10]} {[%emt 00:15:36]} Bf4 {[%clk 01:22:46]} {[%emt
00:00:26]} 21. c4 {[%clk 01:14:51]} {[%emt 00:00:50]} Bxd2 {[%clk 01:22:29]}
{[%emt 00:00:47]} 22. Qxd2 {[%clk 01:15:11]} {[%emt 00:00:10]} dxc4 {[%emt
00:04:46]} 23. Rxc4 {[%clk 01:05:29]} {[%emt 00:06:57]} Qd6 {[%emt 00:12:29]}
24. Rfc1 {[%clk 00:53:36]} {[%emt 00:00:07]} Rc8 {[%clk 01:14:25]} {[%emt
00:07:48]} 25. Qe3 {[%emt 00:20:21]} f5 {[%emt 00:08:03]} 26. gxf5 {[%clk
00:30:37]} {[%emt 00:03:13]} Rxc4 {[%clk 01:07:18]} {[%emt 00:00:30]} 27. Rxc4
{[%clk 00:30:35]} {[%emt 00:00:32]} gxf5 {[%emt 00:08:05]} 28. Bxf5 {[%emt
00:10:45]} Rg8+ {[%clk 00:56:00]} {[%emt 00:02:43]} 29. Kf1 {[%clk 00:22:14]}
{[%emt 00:00:05]} b5 {[%clk 00:56:24]} {[%emt 00:00:07]} 30. Qxe6 {[%clk
00:19:35]} {[%emt 00:03:09]} Qxe6 {[%clk 00:54:57]} {[%emt 00:01:58]} 31. Bxe6
{[%clk 00:19:59]} {[%emt 00:00:05]} Rg6 {[%clk 00:55:21]} {[%emt 00:00:06]} 32.
Rc6 {[%clk 00:20:11]} {[%emt 00:00:19]} Nb6 {[%clk 00:55:43]} {[%emt 00:00:08]}
33. d5 {[%clk 00:17:08]} {[%emt 00:03:33]} Rxh6 {[%clk 00:55:59]} {[%emt
00:00:13]} 34. d6 {[%clk 00:15:41]} {[%emt 00:01:57]} Rxe6 {[%clk 00:56:22]}
{[%emt 00:00:07]} 35. d7 {[%clk 00:16:07]} {[%emt 00:00:04]} Rxc6 {[%clk
00:56:43]} {[%emt 00:00:08]} 36. d8=Q+ {[%clk 00:16:32]} {[%emt 00:00:05]} Nc8
{[%clk 00:57:06]} {[%emt 00:00:07]} 37. Qd5 {[%clk 00:14:57]} {[%emt 00:02:07]}
Rxa6 {[%clk 00:56:40]} {[%emt 00:00:55]} 38. Qxb5+ {[%clk 00:15:11]} {[%emt
00:00:16]} Rb6 {[%clk 00:57:04]} {[%emt 00:00:06]} 39. Qe5+ {[%clk 00:15:32]}
{[%emt 00:00:09]} Kb7 {[%clk 00:56:36]} {[%emt 00:00:58]} 40. f4 {[%clk
00:14:42]} {[%emt 00:01:20]} Nd6 {[%clk 00:56:00]} {[%emt 00:01:06]} 41. f5
{[%clk 00:12:46]} {[%emt 00:02:26]} Kc6 {[%clk 00:56:14]} {[%emt 00:00:17]} 42.
f6 {[%clk 00:01:19]} {[%emt 00:11:57]} Rb5 {[%clk 00:48:39]} {[%emt 00:08:04]}
43. Qe6 {[%clk 00:17:39]} {[%emt 00:14:40]} Rb4 {[%clk 01:18:47]} {[%emt
00:00:50]} 44. Kg1 {[%clk 00:09:15]} {[%emt 00:08:56]} Rf4 {[%clk 01:16:40]}
{[%emt 00:02:36]} 45. Qe5 {[%clk 00:07:04]} {[%emt 00:02:42]} Rf3 {[%clk
01:16:39]} {[%emt 00:00:30]} 46. b4 {[%clk 00:06:58]} {[%emt 00:00:37]} a6
{[%clk 01:16:30]} {[%emt 00:00:40]} 47. Qc5+ {[%clk 00:03:13]} {[%emt
00:04:15]} Kd7 {[%clk 01:16:32]} {[%emt 00:00:27]} 48. Qe5 {[%clk 00:02:40]}
{[%emt 00:01:03]} Ke8 {[%emt 00:00:50]} 1/2-1/2